bitfinex/quotes_BTCUSD_20241028
["timestamp","ask_amount","ask_price","bid_price","bid_amount"]
[1730139875235,0.87247766,68953.0,68952.0,0.43508]
[1730139875468,0.85847766,68953.0,68952.0,0.43508]
[1730139875915,0.87247766,68953.0,68952.0,0.43508]
[1730139876120,0.85847766,68953.0,68952.0,0.43508]
[1730139876330,0.85848157,68953.0,68952.0,0.43508]
[1730139876570,0.87248157,68953.0,68952.0,0.43508]
[1730139876777,0.85848602,68953.0,68952.0,0.43508]
[1730139877004,0.85847821,68953.0,68952.0,0.43508]
[1730139877209,0.81547221,68953.0,68952.0,0.43508]
[1730139877421,0.85847821,68953.0,68952.0,0.43508]
[1730139878104,0.87247821,68953.0,68952.0,0.43508]
[1730139878524,0.82947221,68953.0,68952.0,0.43508]
[1730139878739,0.45851781,68953.0,68952.0,0.43508]
[1730139878972,0.44944074,68953.0,68952.0,0.43508]
[1730139879205,0.44444074,68953.0,68952.0,0.43508]
[1730139879440,0.34444074,68953.0,68952.0,0.43508]
[1730139879882,0.33044074,68953.0,68952.0,0.43508]
[1730139880299,0.17993693,68953.0,68952.0,0.4399]
[1730139880507,0.01342728,68953.0,68952.0,0.52114269]
[1730139880725,0.01342728,68953.0,68952.0,0.52614269]
[1730139880958,0.1584607,68953.0,68952.0,0.52614269]
[1730139881164,0.0134347,68953.0,68952.0,0.52614269]
[1730139881376,0.0264347,68953.0,68952.0,0.52614269]
[1730139881596,0.1584607,68953.0,68952.0,0.51632269]
[1730139881802,0.1584607,68953.0,68952.0,0.43842269]
[1730139882021,0.3314595,68953.0,68952.0,0.43842269]
[1730139882851,0.3304595,68953.0,68952.0,0.43842269]
[1730139883062,0.3364595,68953.0,68952.0,0.43842269]
[1730139885012,0.33647116,68953.0,68952.0,0.43842269]
[1730139885487,0.33812116,68953.0,68952.0,0.43842269]
[1730139887246,0.34887637,68953.0,68952.0,0.43842269]
[1730139887908,0.36608828,68953.0,68952.0,0.43842269]
[1730139888121,0.36608828,68953.0,68952.0,0.43508]
[1730139888332,0.36608828,68953.0,68952.0,0.43838379]
[1730139888791,0.52080489,68953.0,68952.0,0.43838379]
[1730139888998,0.63519772,68953.0,68952.0,0.43838379]
[1730139889226,0.49838644,68953.0,68952.0,0.43838379]
[1730139889452,0.49838644,68953.0,68952.0,0.43508]
[1730139889453,0.67274579,68953.0,68952.0,0.43508]
[1730139889663,0.50338644,68953.0,68952.0,0.43508]
[1730139889883,0.50338644,68953.0,68952.0,0.43825695]
[1730139890100,0.65389025,68953.0,68952.0,0.43825695]
[1730139891463,0.648642,68953.0,68952.0,0.43508]
[1730139891675,0.67663376,68953.0,68952.0,0.43825695]
[1730139892340,0.67664908,68953.0,68952.0,0.43825695]
[1730139892581,0.52614527,68953.0,68952.0,0.43825695]
[1730139893072,0.52596527,68953.0,68952.0,0.43825695]
[1730139893281,0.50296527,68953.0,68952.0,0.43508]
[1730139893510,0.48041548,68953.0,68952.0,0.43826991]
[1730139894411,0.48042008,68953.0,68952.0,0.43826991]
[1730139894625,0.50343085,68953.0,68952.0,0.43826991]
[1730139895054,0.50343126,68953.0,68952.0,0.43826991]
[1730139895261,0.65393507,68953.0,68952.0,0.43826991]
[1730139896133,0.65393834,68953.0,68952.0,0.43826991]
[1730139896986,0.49743453,68953.0,68952.0,0.43826991]
[1730139897408,0.50743453,68953.0,68952.0,0.43826991]
[1730139897614,0.33922853,68953.0,68952.0,0.43826991]
[1730139897830,0.65361388,68953.0,68952.0,0.43826991]
[1730139898183,0.65361388,68953.0,68952.0,0.43508]
[1730139898573,0.65361388,68953.0,68952.0,0.43826629]
[1730139898990,0.67661388,68953.0,68952.0,0.43826629]
[1730139900700,0.67161388,68953.0,68952.0,0.43826629]
[1730139900933,0.35667815,68953.0,68952.0,0.43826629]
[1730139901158,0.6710635,68953.0,68952.0,0.43826629]
[1730139901371,0.64861388,68953.0,68952.0,0.43826629]
[1730139901595,0.63861388,68953.0,68952.0,0.43826629]
[1730139902008,0.64861388,68953.0,68952.0,0.43826629]
[1730139903067,0.63861388,68953.0,68952.0,0.43826629]
[1730139903501,0.66661388,68953.0,68952.0,0.43826629]
[1730139903728,0.66161388,68953.0,68952.0,0.43826629]
[1730139903937,0.66861388,68953.0,68952.0,0.43826629]
[1730139904377,0.66161388,68953.0,68952.0,0.43826629]
[1730139904592,0.66761388,68953.0,68952.0,0.43826629]
[1730139905030,0.66161388,68953.0,68952.0,0.43826629]
[1730139905461,0.46925453,68953.0,68952.0,0.43826629]
[1730139905915,0.61067471,68953.0,68952.0,0.43826629]
[1730139906153,0.66119778,68953.0,68952.0,0.43826629]
[1730139906366,0.66919778,68953.0,68952.0,0.43826629]
[1730139906571,0.66119778,68953.0,68952.0,0.43826629]
[1730139906795,0.63872338,68953.0,68952.0,0.43826629]
[1730139907019,0.64672338,68953.0,68952.0,0.43826629]
[1730139907235,0.63872338,68953.0,68952.0,0.43826629]
[1730139908078,0.64672338,68953.0,68952.0,0.43826629]
[1730139908763,0.79841422,68953.0,68952.0,0.43826629]
[1730139908970,0.79841422,68953.0,68952.0,0.43508]
[1730139909399,0.79841422,68953.0,68952.0,0.43827013]
[1730139909610,0.72623,68953.0,68952.0,0.43827013]
[1730139909837,0.78134381,68953.0,68952.0,0.43827013]
[1730139910043,0.79042033,68953.0,68952.0,0.43827013]
[1730139910250,0.80442033,68953.0,68952.0,0.43827013]
[1730139910478,0.79042033,68953.0,68952.0,0.43827013]
[1730139910905,0.80442033,68953.0,68952.0,0.43827013]
[1730139911666,0.79042033,68953.0,68952.0,0.43827013]
[1730139912084,0.84570898,68953.0,68952.0,0.43827013]
[1730139912319,0.80260081,68953.0,68952.0,0.43827013]
[1730139913487,0.81660081,68953.0,68952.0,0.43827013]
[1730139913748,0.80260081,68953.0,68952.0,0.43827013]
[1730139913963,0.81660081,68953.0,68952.0,0.43827013]
[1730139914180,0.78534153,68953.0,68952.0,0.43827013]
[1730139914395,0.80260698,68953.0,68952.0,0.43827013]
[1730139914617,0.81660698,68953.0,68952.0,0.43827013]
[1730139914839,0.80260698,68953.0,68952.0,0.43827013]
[1730139915930,0.80260698,68953.0,68952.0,0.43508]
[1730139916163,0.80260698,68953.0,68952.0,0.43827794]
[1730139916386,0.81660698,68953.0,68952.0,0.43827794]
[1730139916807,0.80260698,68953.0,68952.0,0.43827794]
[1730139917056,0.81660698,68953.0,68952.0,0.43827794]
[1730139917276,0.88650039,68953.0,68952.0,0.43827794]
[1730139917739,0.90050039,68953.0,68952.0,0.43508]
[1730139917966,0.88650039,68953.0,68952.0,0.43508]
[1730139918177,0.95872537,68953.0,68952.0,0.43508]
[1730139918627,1.06641286,68953.0,68952.0,0.43508]
[1730139919252,1.08041286,68953.0,68952.0,0.43508]
[1730139919508,1.06641286,68953.0,68952.0,0.43508]
[1730139919752,0.94290202,68953.0,68952.0,0.43508]
[1730139919987,0.95690202,68953.0,68952.0,0.43827794]
[1730139920212,0.9215084,68953.0,68952.0,0.43827794]
[1730139920651,1.01652499,68953.0,68952.0,0.43827794]
[1730139921082,1.01652499,68953.0,68952.0,0.43508]
[1730139921343,0.84921453,68953.0,68952.0,0.43508]
[1730139921553,0.84921453,68953.0,68952.0,0.43828707]
[1730139921554,0.73628145,68953.0,68952.0,0.43828707]
[1730139921774,0.69312462,68953.0,68952.0,0.43828707]
[1730139921987,0.48340479,68953.0,68952.0,0.43828707]
[1730139922206,0.47440479,68953.0,68952.0,0.43508]
[1730139922635,0.48840479,68953.0,68952.0,0.43828707]
[1730139923292,0.47440479,68953.0,68952.0,0.43828707]
[1730139923513,0.46940479,68953.0,68952.0,0.43828707]
[1730139923729,0.34986198,68953.0,68952.0,0.43828707]
[1730139924006,0.47240479,68953.0,68952.0,0.43828707]
[1730139925111,0.62416974,68953.0,68952.0,0.43828707]
[1730139925344,0.50058479,68953.0,68952.0,0.43828707]
[1730139925572,0.46171463,68953.0,68952.0,0.43508]
[1730139925780,0.51133738,68953.0,68952.0,0.43508]
[1730139926205,0.50833738,68953.0,68952.0,0.43508]
[1730139926417,0.55150478,68953.0,68952.0,0.43508]
[1730139926633,0.50833738,68953.0,68952.0,0.43508]
[1730139926849,0.65884119,68953.0,68952.0,0.43508]
[1730139927065,0.82424177,68953.0,68952.0,0.43508]
[1730139927538,0.9017328,68953.0,68952.0,0.43508]
[1730139927774,0.9233353,68953.0,68952.0,0.43508]
[1730139928226,0.80460324,68953.0,68952.0,0.43508]
[1730139928675,0.81760324,68953.0,68952.0,0.43508]
[1730139929146,0.80460324,68953.0,68952.0,0.43508]
[1730139929368,0.77708977,68953.0,68952.0,0.43508]
[1730139929584,0.80465519,68953.0,68952.0,0.43508]
[1730139930028,0.81865519,68953.0,68952.0,0.40240289]
[1730139930286,0.80465519,68953.0,68952.0,0.40240289]
[1730139930709,0.8179244,68953.0,68952.0,0.40240289]
[1730139931805,0.8039244,68953.0,68952.0,0.40240289]
[1730139932238,0.8179244,68953.0,68952.0,0.40240289]
[1730139932478,0.8039244,68953.0,68952.0,0.40240289]
[1730139932708,0.8179244,68953.0,68952.0,0.40240289]
[1730139932926,0.92588977,68953.0,68952.0,0.40240289]
[1730139933364,0.8179244,68953.0,68952.0,0.40240289]
[1730139934010,0.92587387,68953.0,68952.0,0.40240289]
[1730139934436,0.8179244,68953.0,68952.0,0.40240289]
[1730139934683,0.9829244,68953.0,68952.0,0.40240289]
[1730139935125,0.98422255,68953.0,68952.0,0.40240289]
[1730139935371,1.1585819,68953.0,68952.0,0.40240289]
[1730139935605,1.1585819,68953.0,68935.0,0.0811]
[1730139935606,0.25018,68943.0,68935.0,0.0811]
[1730139935844,0.88641071,68943.0,68934.0,0.21780956]
[1730139936072,0.88641071,68943.0,68926.0,0.21780956]
[1730139936073,0.268081,68927.0,68926.0,0.21780956]
[1730139936328,0.44017724,68927.0,68926.0,0.21780956]
[1730139936538,0.44017724,68927.0,68926.0,0.00275296]
[1730139936539,0.6229938,68927.0,68926.0,0.00275296]
[1730139936729,0.268083,68926.0,68925.0,0.0986]
[1730139936986,0.47996934,68926.0,68925.0,0.0986]
[1730139938744,0.47996934,68926.0,68925.0,0.53385]
[1730139938975,0.21288634,68926.0,68925.0,0.53385]
[1730139939228,0.18655345,68926.0,68925.0,0.76460812]
[1730139939670,0.18655345,68926.0,68925.0,0.61470312]
[1730139939899,0.33163645,68926.0,68925.0,0.61470312]
[1730139940136,0.29658681,68926.0,68925.0,0.61470312]
[1730139940360,0.34238965,68926.0,68925.0,0.61470312]
[1730139940570,0.34238965,68926.0,68925.0,0.61195]
[1730139940994,0.34238965,68926.0,68925.0,0.61470312]
[1730139941434,0.19730665,68926.0,68925.0,0.76460812]
[1730139941896,0.19730665,68926.0,68925.0,0.61952312]
[1730139942580,0.00365203,68926.0,68925.0,0.79470547]
[1730139942795,0.09141725,68950.0,68925.0,0.79470547]
[1730139942796,0.21780956,68949.0,68941.0,0.08282]
[1730139943051,0.21780956,68949.0,68941.0,0.078]
[1730139943276,0.145047,68943.0,68942.0,0.4383796]
[1730139943488,0.145047,68943.0,68942.0,0.43515]
[1730139943705,0.145047,68943.0,68942.0,0.43837219]
[1730139943928,0.15411955,68945.0,68942.0,0.43837219]
[1730139944141,0.00907655,68945.0,68942.0,0.43837219]
[1730139944419,0.15050381,68944.0,68942.0,0.43837219]
[1730139945518,0.29554881,68944.0,68942.0,0.43837219]
[1730139945732,0.15050381,68944.0,68942.0,0.43837219]
[1730139945961,0.29654881,68944.0,68942.0,0.43837219]
[1730139946413,0.15150381,68944.0,68943.0,0.145047]
[1730139946638,0.15150381,68944.0,68943.0,0.00482]
[1730139946862,0.15150381,68944.0,68943.0,0.585007]
[1730139947111,0.15150381,68944.0,68943.0,0.58775731]
[1730139947336,0.1,68951.0,68945.0,0.00482]
[1730139947558,0.1,68951.0,68943.0,0.43789031]
[1730139947559,0.15050381,68951.0,68950.0,0.435093]
[1730139947791,0.16665,68953.0,68950.0,0.435093]
[1730139947792,0.16665,68953.0,68952.0,0.149848]
[1730139948222,0.16665,68953.0,68952.0,0.584938]
[1730139948453,0.16665,68953.0,68952.0,0.93293652]
[1730139948688,0.21945956,68967.0,68966.0,0.00982]
[1730139948689,0.00165,68967.0,68966.0,0.00982]
[1730139948937,0.00165,68967.0,68966.0,0.325718]
[1730139949149,0.00165,68967.0,68966.0,0.760718]
[1730139949431,0.00165,68967.0,68966.0,0.76544554]
[1730139949664,0.00165,68967.0,68966.0,0.93480489]
[1730139950992,0.00165,68967.0,68966.0,0.76344554]
[1730139951220,0.00265,68967.0,68966.0,0.77144554]
[1730139951412,0.08623725,68983.0,68966.0,0.77144554]
[1730139951413,0.21780956,68980.0,68977.0,0.00482]
[1730139951644,0.15050381,68979.0,68978.0,0.221973]
[1730139951864,0.15050381,68979.0,68978.0,0.65954801]
[1730139952093,0.15050381,68979.0,68978.0,0.51457501]
[1730139952691,0.15050381,68979.0,68978.0,0.65954801]
[1730139952898,0.15050381,68979.0,68978.0,0.51457501]
[1730139953939,0.15050381,68979.0,68978.0,0.65954801]
[1730139954147,0.15050381,68979.0,68978.0,0.51457501]
[1730139954351,0.15150381,68979.0,68978.0,0.52057501]
[1730139954571,0.08623725,68983.0,68982.0,0.149785]
[1730139954799,0.00165,68986.0,68982.0,0.149785]
[1730139954800,0.00165,68986.0,68983.0,0.144962]
[1730139955006,0.15050381,68985.0,68984.0,0.144961]
[1730139955216,0.00165,68986.0,68985.0,0.149779]
[1730139955445,0.00165,68986.0,68985.0,0.75691709]
[1730139955713,0.00165,68986.0,68985.0,0.59230803]
[1730139957449,0.00165,68986.0,68985.0,0.59430803]
[1730139957675,0.00265,68986.0,68985.0,0.84646738]
[1730139957891,0.00165,68986.0,68985.0,0.67010803]
[1730139958100,0.00165,68986.0,68985.0,0.93386738]
[1730139958344,0.21780956,69007.0,69006.0,0.149734]
[1730139958781,0.21780956,69014.0,69009.0,0.00482]
[1730139959037,0.15050381,69013.0,69010.0,0.43761783]
[1730139959271,0.144902,69012.0,69011.0,0.00482]
[1730139959483,0.144904,69011.0,69010.0,0.4377399]
[1730139959749,0.60906535,69012.0,69011.0,0.29280323]
[1730139959984,0.60906535,69012.0,69011.0,0.289806]
[1730139959985,0.59856711,69012.0,69011.0,0.289806]
[1730139960195,0.59856711,69012.0,69011.0,0.29280323]
[1730139960196,0.85956916,69012.0,69011.0,0.29280323]
[1730139960400,0.85956916,69012.0,69011.0,0.30680323]
[1730139960610,0.69120981,69012.0,69011.0,0.30680323]
[1730139960842,0.70356575,69012.0,69011.0,0.29280323]
[1730139961089,0.71156575,69012.0,69011.0,0.29380323]
[1730139961331,0.69820981,69012.0,69011.0,0.290806]
[1730139961578,0.7115651,69012.0,69011.0,0.290806]
[1730139961821,0.71155903,69012.0,69011.0,0.290806]
[1730139962241,0.69820981,69012.0,69011.0,0.290806]
[1730139962679,0.69820981,69012.0,69011.0,0.29380323]
[1730139964180,0.71154453,69012.0,69011.0,0.29380323]
[1730139965708,0.41674053,69012.0,69011.0,0.29380323]
[1730139965941,0.008,69012.0,69011.0,0.44852723]
[1730139966167,0.008,69012.0,69011.0,0.71018658]
[1730139966390,0.009648,69012.0,69011.0,0.86069039]
[1730139966598,0.001642,69024.0,69021.0,0.154703]
[1730139966823,0.001642,69024.0,69021.0,0.734253]
[1730139967052,0.001642,69024.0,69021.0,0.73879968]
[1730139967305,0.001642,69024.0,69021.0,0.81919968]
[1730139967516,0.001642,69024.0,69021.0,0.98855903]
[1730139967742,0.15214581,69022.0,69021.0,0.58209668]
[1730139967958,0.48938616,69022.0,69021.0,0.58209668]
[1730139968176,0.48938616,69022.0,69021.0,0.58609668]
[1730139968406,0.50272082,69022.0,69021.0,0.58609668]
[1730139968642,0.52423546,69022.0,69021.0,0.58609668]
[1730139969502,0.52423546,69022.0,69021.0,0.58209668]
[1730139969901,0.35801982,69022.0,69021.0,0.58309668]
[1730139970147,0.2100144,69022.0,69021.0,0.58209668]
[1730139970330,0.2098344,69022.0,69021.0,0.58209668]
[1730139970577,0.2100144,69022.0,69021.0,0.58309668]
[1730139970796,0.2100144,69022.0,69021.0,0.57955]
[1730139970797,0.3548954,69022.0,69021.0,0.57955]
[1730139971008,0.2098344,69022.0,69021.0,0.58330923]
[1730139971224,0.2100144,69022.0,69021.0,0.58330923]
[1730139971825,0.3548954,69022.0,69021.0,0.58055]
[1730139972150,0.2100144,69022.0,69021.0,0.58055]
[1730139972359,0.2100144,69022.0,69021.0,0.58232401]
[1730139973034,0.1868344,69022.0,69021.0,0.58232401]
[1730139973906,0.1868344,69022.0,69021.0,0.72720701]
[1730139974319,0.1868344,69022.0,69021.0,0.58232401]
[1730139976184,0.1868344,69022.0,69021.0,0.72820701]
[1730139976347,0.1868344,69022.0,69021.0,0.58332401]
[1730139976550,0.1868344,69022.0,69021.0,0.58232401]
[1730139977411,0.03633059,69022.0,69021.0,0.72720701]
[1730139977644,0.03633059,69022.0,69021.0,0.99127597]
[1730139978073,0.001642,69022.0,69021.0,0.99127597]
[1730139978275,0.03653915,69022.0,69021.0,0.99219066]
[1730139978472,0.01505995,69022.0,69021.0,0.99219066]
[1730139978690,0.01505995,69022.0,69021.0,1.07009066]
[1730139979106,0.03654336,69022.0,69021.0,1.07009066]
[1730139979526,0.29005995,69022.0,69021.0,1.07009066]
[1730139980304,0.31154095,69022.0,69021.0,1.08409066]
[1730139980764,0.276642,69022.0,69021.0,1.08409066]
[1730139980971,0.31153876,69022.0,69021.0,1.08409066]
[1730139981854,0.29006383,69022.0,69021.0,1.08409066]
[1730139982037,0.29006383,69022.0,69021.0,1.23459447]
[1730139982607,0.2900677,69022.0,69021.0,1.23459447]
[1730139983135,0.276642,69022.0,69021.0,1.32999447]
[1730139983351,0.29006835,69022.0,69021.0,1.32999447]
[1730139983574,0.29006835,69022.0,69021.0,1.17949066]
[1730139983776,0.29006835,69022.0,69021.0,1.17749066]
[1730139983975,0.29006835,69022.0,69021.0,0.9092417]
[1730139984175,0.31155951,69022.0,69021.0,0.9232417]
[1730139984531,0.31155951,69022.0,69021.0,0.9092417]
[1730139984731,0.29006835,69022.0,69021.0,0.9092417]
[1730139985170,0.31156753,69022.0,69021.0,0.9092417]
[1730139985850,0.31156753,69022.0,69021.0,0.9232417]
[1730139986288,0.31156753,69022.0,69021.0,1.16349066]
[1730139986717,0.31156753,69022.0,69021.0,1.17749066]
[1730139986920,0.31156753,69022.0,69021.0,1.16349066]
[1730139987347,0.31156753,69022.0,69021.0,1.17149066]
[1730139987622,0.31156753,69022.0,69021.0,1.31599447]
[1730139987822,0.31156753,69022.0,69021.0,1.32999447]
[1730139988234,0.29006835,69022.0,69021.0,1.32999447]
[1730139989111,0.29006835,69022.0,69021.0,1.31599447]
[1730139989307,0.29006835,69022.0,69021.0,1.32999447]
[1730139989308,0.276642,69022.0,69021.0,1.32999447]
[1730139989760,0.29009208,69022.0,69021.0,1.06174551]
[1730139989962,0.29009208,69022.0,69021.0,1.07574551]
[1730139990261,0.29009208,69022.0,69021.0,0.9112417]
[1730139990507,0.31160531,69022.0,69021.0,0.9092417]
[1730139990732,0.31160531,69022.0,69021.0,0.9232417]
[1730139990943,0.31160531,69022.0,69021.0,1.16349066]
[1730139991165,0.31160531,69022.0,69021.0,1.11349066]
[1730139991566,0.276642,69022.0,69021.0,1.11349066]
[1730139991765,0.311587,69022.0,69021.0,1.01809066]
[1730139992178,0.311587,69022.0,69021.0,1.03209066]
[1730139992601,0.311587,69022.0,69021.0,0.93324906]
[1730139992813,0.311587,69022.0,69021.0,0.94724906]
[1730139993017,0.311587,69022.0,69021.0,0.94924906]
[1730139994101,0.311587,69022.0,69021.0,0.93324906]
[1730139994307,0.311587,69022.0,69021.0,0.93524906]
[1730139995566,0.29010255,69022.0,69021.0,0.94724906]
[1730139995786,0.3116386,69022.0,69021.0,0.93324906]
[1730139996245,0.3116386,69022.0,69021.0,0.94724906]
[1730139996522,0.3116386,69022.0,69021.0,0.93324906]
[1730139996923,0.3116386,69022.0,69021.0,0.94924906]
[1730139997130,0.3116386,69022.0,69021.0,0.93524906]
[1730139997364,0.3116386,69022.0,69021.0,0.94924906]
[1730139998756,0.29010255,69022.0,69021.0,0.94924906]
[1730140000739,0.31165108,69022.0,69021.0,0.94924906]
[1730140001200,0.31165107,69022.0,69021.0,0.94924906]
[1730140001390,0.31165107,69022.0,69021.0,0.95007206]
[1730140002329,0.3116586,69022.0,69021.0,0.95007206]
[1730140003043,0.01510255,69022.0,69021.0,0.67507206]
[1730140005620,0.01510255,69022.0,69021.0,0.59717206]
[1730140006043,0.01510255,69022.0,69021.0,0.4227647]
[1730140006252,0.03669552,69022.0,69021.0,0.2638817]
[1730140006467,0.03669428,69022.0,69021.0,0.4137647]
[1730140006671,0.06098497,69022.0,69021.0,0.4277647]
[1730140006882,0.04752442,69022.0,69021.0,0.4087647]
[1730140007088,0.04752442,69022.0,69021.0,0.2638817]
[1730140007296,0.04752442,69022.0,69021.0,0.2778817]
[1730140007535,0.04752442,69022.0,69021.0,0.2590617]
[1730140007741,0.19802823,69022.0,69021.0,0.2590617]
[1730140007948,0.19803045,69022.0,69021.0,0.2590617]
[1730140008415,0.20882647,69022.0,69021.0,0.4179447]
[1730140008640,0.19803045,69022.0,69021.0,0.4179447]
[1730140009317,0.03673078,69022.0,69021.0,0.4227647]
[1730140009525,0.03673078,69022.0,69021.0,0.4087647]
[1730140009744,0.03673078,69022.0,69021.0,0.4107647]
[1730140009961,0.01513768,69022.0,69021.0,0.4107647]
[1730140010174,0.01513768,69022.0,69021.0,0.58517206]
[1730140010389,0.01513768,69022.0,69021.0,0.58817206]
[1730140010609,0.01513768,69022.0,69021.0,0.58317206]
[1730140011022,0.001642,69022.0,69021.0,0.59417206]
[1730140011226,0.001642,69022.0,69021.0,0.58517206]
[1730140012704,0.001642,69022.0,69021.0,0.59917206]
[1730140016218,0.001642,69022.0,69021.0,0.64243971]
[1730140016894,0.001642,69022.0,69021.0,0.59917206]
[1730140017310,0.001642,69022.0,69021.0,0.82432439]
[1730140017519,0.001642,69022.0,69021.0,0.82432569]
[1730140017975,0.001642,69022.0,69021.0,1.07933539]
[1730140018195,0.001642,69022.0,69021.0,1.25443539]
[1730140018408,0.001642,69022.0,69021.0,1.34043539]
[1730140018615,0.001642,69022.0,69021.0,1.35443539]
[1730140019264,0.001642,69022.0,69021.0,1.35439882]
[1730140019745,0.001642,69022.0,69021.0,1.36623779]
[1730140019958,0.001642,69022.0,69021.0,1.35223779]
[1730140020180,0.001642,69022.0,69021.0,1.36623779]
[1730140020427,0.001642,69024.0,69023.0,0.256699]
[1730140020638,0.21780956,69042.0,69034.0,0.49928336]
[1730140020870,0.21780956,69042.0,69034.0,0.81379468]
[1730140021083,0.001642,69055.0,69034.0,1.71826468]
[1730140021506,0.001642,69055.0,69034.0,1.81826468]
[1730140021934,0.001642,69055.0,69034.0,1.83226468]
[1730140022382,0.001642,69055.0,69048.0,0.00982]
[1730140022588,0.001642,69055.0,69048.0,0.32605336]
[1730140022795,0.001642,69055.0,69054.0,0.149634]
[1730140023013,0.001642,69055.0,69054.0,1.049154]
[1730140023228,0.001642,69055.0,69054.0,1.05293874]
[1730140023862,0.01510916,69055.0,69054.0,1.05293874]
[1730140024120,0.001642,69055.0,69054.0,1.05775874]
[1730140024546,0.001642,69055.0,69054.0,1.06375874]
[1730140024760,0.001642,69055.0,69054.0,1.05775874]
[1730140025193,0.001642,69055.0,69054.0,1.06275874]
[1730140027189,0.001642,69055.0,69054.0,1.05775874]
[1730140027623,0.001642,69055.0,69054.0,1.06775874]
[1730140028929,0.001642,69055.0,69054.0,0.91812474]
[1730140029777,0.15214581,69055.0,69054.0,0.91812474]
[1730140030182,0.15214581,69055.0,69054.0,1.06293874]
[1730140030395,0.15214581,69055.0,69054.0,0.91812474]
[1730140031462,0.15214581,69055.0,69054.0,1.06293874]
[1730140031679,0.15214581,69055.0,69054.0,0.91812474]
[1730140032146,0.6817851,69055.0,69054.0,0.91812474]
[1730140032359,1.09028519,69055.0,69054.0,0.91812474]
[1730140032573,1.10103662,69055.0,69054.0,0.91434]
[1730140033002,1.10103662,69055.0,69054.0,0.91766186]
[1730140033217,1.10603662,69055.0,69054.0,0.51831105]
[1730140033431,0.97533662,69055.0,69054.0,0.33021105]
[1730140033829,0.97533662,69055.0,69054.0,0.32688919]
[1730140034516,0.31942836,69041.0,69040.0,0.21780956]
[1730140034762,1.66641732,69041.0,69040.0,0.21780956]
[1730140034980,1.66641732,69041.0,69040.0,0.22115881]
[1730140035188,0.023,69040.0,69033.0,0.21780956]
[1730140035395,0.144849,69038.0,69033.0,0.21780956]
[1730140035609,0.00018,69036.0,69007.0,0.01210333]
[1730140035830,0.15050381,69035.0,69025.0,0.144874]
[1730140036074,0.01343755,69034.0,69025.0,0.58281698]
[1730140036290,0.16394136,69033.0,69025.0,0.43794298]
[1730140036502,0.15050381,69033.0,69029.0,0.144865]
[1730140036716,0.15050381,69033.0,69026.0,0.144872]
[1730140036926,0.15050381,69033.0,69030.0,0.43794173]
[1730140037138,0.15050381,69033.0,69030.0,0.43459]
[1730140037365,0.15050381,69033.0,69031.0,0.00335148]
[1730140037602,0.01645806,69032.0,69031.0,0.00335148]
[1730140037830,0.173038,69033.0,69032.0,0.27326194]
[1730140038296,0.173038,69033.0,69032.0,0.27661317]
[1730140038764,0.51572735,69033.0,69032.0,0.27661317]
[1730140039672,0.42354181,69033.0,69032.0,0.27661317]
[1730140040400,0.42554181,69033.0,69032.0,0.27761317]
[1730140040645,0.42554181,69033.0,69032.0,0.27661317]
[1730140040874,0.42354181,69033.0,69032.0,0.27661317]
[1730140041295,0.42554181,69033.0,69032.0,0.27661317]
[1730140042548,0.28050381,69033.0,69032.0,0.27661317]
[1730140042797,0.25750381,69033.0,69032.0,0.27661317]
[1730140043029,0.25768381,69033.0,69032.0,0.27661317]
[1730140043753,0.40054181,69033.0,69032.0,0.27661317]
[1730140043986,0.25768381,69033.0,69032.0,0.27661317]
[1730140044230,0.40254181,69033.0,69032.0,0.27661317]
[1730140044926,0.40254181,69033.0,69032.0,0.27326194]
[1730140045166,0.25768381,69033.0,69032.0,0.27326194]
[1730140045428,0.25768381,69033.0,69032.0,0.27666757]
[1730140045669,0.40254181,69033.0,69032.0,0.27666757]
[1730140046143,0.25750381,69033.0,69032.0,0.27666757]
[1730140046598,0.25768381,69033.0,69032.0,0.27666757]
[1730140047318,0.25768381,69033.0,69032.0,0.27326194]
[1730140047816,0.25768381,69033.0,69032.0,0.27670289]
[1730140048042,0.40254181,69033.0,69032.0,0.27670289]
[1730140049417,0.25768381,69033.0,69032.0,0.27670289]
[1730140049645,0.27110741,69033.0,69032.0,0.27670289]
[1730140050171,0.27110785,69033.0,69032.0,0.27670289]
[1730140050399,0.16592785,69033.0,69032.0,0.42156289]
[1730140050628,0.17092785,69033.0,69032.0,0.27670289]
[1730140050866,0.15750381,69033.0,69032.0,0.27670289]
[1730140051112,0.15750381,69033.0,69032.0,0.42156289]
[1730140051113,0.17092852,69033.0,69032.0,0.42156289]
[1730140051359,0.17092852,69033.0,69032.0,0.27670289]
[1730140052488,0.17092852,69033.0,69032.0,0.42156289]
[1730140052489,0.16592852,69033.0,69032.0,0.42156289]
[1730140052722,0.15250381,69033.0,69032.0,0.42156289]
[1730140052953,0.15750381,69033.0,69032.0,0.27670289]
[1730140055120,0.15250381,69033.0,69032.0,0.42156289]
[1730140055376,0.16594721,69033.0,69032.0,0.42156289]
[1730140055836,0.16594721,69033.0,69032.0,0.27670289]
[1730140057118,0.16594721,69033.0,69032.0,0.42156289]
[1730140057800,0.16394721,69033.0,69032.0,0.27670289]
[1730140058015,0.16494721,69033.0,69032.0,0.27670289]
[1730140058228,0.16394721,69033.0,69032.0,0.27670289]
[1730140058848,0.0134434,69033.0,69032.0,0.42156289]
[1730140059302,0.001644,69036.0,69035.0,0.225654]
[1730140059501,0.01511581,69036.0,69035.0,0.22909701]
[1730140059713,0.01511581,69036.0,69035.0,0.68012301]
[1730140060751,0.01511581,69036.0,69035.0,0.68512301]
[1730140060955,0.001644,69036.0,69035.0,0.68012301]
[1730140061164,0.01512374,69036.0,69035.0,0.68012301]
[1730140061382,0.01512374,69036.0,69035.0,0.68212301]
[1730140061628,0.61885738,69036.0,69035.0,0.60132301]
[1730140061857,0.64042497,69036.0,69035.0,0.60132301]
[1730140062064,0.67352497,69036.0,69035.0,0.60132301]
[1730140062277,0.67352497,69036.0,69035.0,0.59788]
[1730140062709,0.67352497,69036.0,69035.0,0.60111039]
[1730140062889,0.82402878,69036.0,69035.0,0.60111039]
[1730140063130,0.82402878,69036.0,69035.0,0.59911039]
[1730140063338,0.82602878,69036.0,69035.0,0.59588]
[1730140063789,0.02818,69022.0,69021.0,0.000823]
[1730140063992,1.58361241,69022.0,69021.0,0.000823]
[1730140064225,1.77995502,69022.0,69021.0,0.00405687]
[1730140064437,1.77995502,69022.0,69021.0,0.000823]
[1730140064644,1.77995502,69022.0,69021.0,0.435473]
[1730140064851,1.7664791,69022.0,69021.0,0.435473]
[1730140065067,1.78196123,69022.0,69021.0,0.436473]
[1730140066376,1.77996123,69022.0,69021.0,0.435473]
[1730140066621,1.77996123,69022.0,69021.0,0.436473]
[1730140066622,1.78196123,69022.0,69021.0,0.436473]
[1730140066908,1.77996123,69022.0,69021.0,0.435473]
[1730140067382,1.78196123,69022.0,69021.0,0.436473]